bitfinex/quotes_ETHUSD_20250426
["timestamp","ask_amount","ask_price","bid_price","bid_amount"]
[1745642290229,4.677,1791.5,1791.4,0.10960399]
[1745642290434,4.677,1791.5,1791.4,6.50923018]
[1745642290677,4.677,1791.5,1791.4,7.7183911]
[1745642292276,4.677,1791.5,1791.4,8.2214657]
[1745642296298,4.677,1791.5,1791.4,7.7183911]
[1745642308935,0.51749733,1792.0,1791.9,5.58066856]
[1745642309238,4.674,1792.0,1791.9,5.68731304]
[1745642313223,4.674,1792.0,1791.9,0.10664448]
[1745642313425,5.6337,1792.0,1791.7,5.58115241]
[1745642313645,5.6337,1792.0,1791.8,0.10670705]
[1745642314436,5.6337,1792.0,1791.7,5.58128479]
[1745642314638,5.6337,1792.0,1791.8,0.10670705]
[1745642315826,6.63633856,1791.9,1791.8,0.10670705]
[1745642316002,6.63633856,1791.9,1791.5,5.58190314]
[1745642316207,6.63633856,1791.9,1791.6,0.10646177]
[1745642317011,1.05567,1791.9,1791.6,5.68783294]
[1745642317943,10.25452441,1792.0,1791.8,5.58079318]
[1745642317944,4.674,1792.0,1791.8,5.58079318]
[1745642318139,5.1663,1792.0,1791.6,5.68787648]
[1745642318309,5.1663,1792.0,1791.9,0.10659155]
[1745642318836,5.1663,1792.0,1791.6,5.58137535]
[1745642319041,5.68411412,1792.0,1791.7,0.10671671]
[1745642319219,0.56841141,1791.9,1791.6,11.16275856]
[1745642319425,0.56841141,1791.9,1791.7,0.10671671]
[1745642319636,0.56841141,1791.9,1791.6,11.16277301]
[1745642319823,0.56841141,1791.9,1791.7,0.10671671]
[1745642320020,0.56841141,1791.9,1791.6,5.58137535]
[1745642320225,0.56841141,1791.9,1791.7,0.10671671]
[1745642320539,0.56841141,1791.9,1791.7,5.58128766]
[1745642320841,0.56841141,1791.9,1791.8,0.10665413]
[1745642321447,1.08671067,1791.9,1791.8,0.10665413]
[1745642323416,0.51829926,1791.9,1791.8,5.68763415]
[1745642325256,4.674,1792.0,1791.9,5.58066856]
[1745642325551,4.674,1792.0,1791.9,5.68688961]
[1745642326042,5.19249023,1792.0,1791.9,5.68688961]
[1745642327745,5.19249023,1792.0,1791.9,6.49968961]
[1745642330949,4.674,1792.0,1791.9,6.49968961]
[1745642331143,4.674,1792.0,1791.9,8.21082473]
[1745642335834,16.743,1792.3,1792.1,5.57979382]
[1745642336052,21.416,1792.3,1792.2,5.70443441]
[1745642337276,4.673,1792.3,1792.2,5.70443441]
[1745642337471,4.673,1792.3,1792.2,6.91303723]
[1745642337676,4.673,1792.3,1792.2,6.78833722]
[1745642338487,17.24544583,1792.9,1792.4,5.57895801]
[1745642338691,4.673,1792.8,1792.3,1.3048746]
[1745642338853,4.673,1792.8,1792.5,5.57851904]
[1745642339056,4.673,1792.8,1792.7,5.57817816]
[1745642339367,4.673,1792.8,1792.6,5.57829517]
[1745642340289,4.673,1792.8,1792.4,5.57896683]
[1745642340470,5.1653,1792.8,1792.5,5.57865298]
[1745642340886,5.1653,1792.8,1792.5,11.15728987]
[1745642341075,5.1653,1792.8,1792.5,5.57863689]
[1745642341279,10.81932131,1792.8,1792.3,5.57928533]
[1745642341591,6.0706964,1792.7,1792.2,5.57955938]
[1745642342481,5.5788379,1792.5,1792.1,6.38167262]
[1745642342683,5.1643,1792.4,1792.1,5.57987262]
[1745642344698,5.1643,1792.4,1792.1,5.57982134]
[1745642345003,5.1643,1792.4,1792.2,5.57958947]
[1745642348807,5.1643,1792.4,1792.1,5.57984725]
[1745642349486,10.74352433,1792.4,1792.0,5.5801925]
[1745642350080,11.81787676,1792.4,1792.0,5.5801925]
[1745642351207,6.0972974,1792.3,1791.9,5.58054916]
[1745642351428,0.4923,1792.2,1791.9,5.58054916]
[1745642351721,0.4923,1792.2,1791.9,5.57040211]
[1745642353123,0.4923,1792.2,1791.9,11.15082616]
[1745642353331,0.4923,1792.2,1792.0,5.5802595]
[1745642355529,5.1643,1792.4,1792.1,5.57978201]
[1745642355699,5.1643,1792.4,1792.0,6.333438]
[1745642356022,10.74365015,1792.4,1791.9,5.58046635]
[1745642356206,6.07206043,1792.2,1791.8,6.33412918]
[1745642356409,6.07206043,1792.2,1791.8,5.58082918]
[1745642356791,0.4923,1792.2,1791.8,5.5807395]
[1745642357131,0.4923,1792.2,1791.8,11.1614935]
[1745642357313,0.4923,1792.2,1791.8,5.5807395]
[1745642357505,0.4923,1792.2,1791.8,5.58068409]
[1745642358431,0.4923,1792.2,1791.8,11.16142644]
[1745642358726,0.4923,1792.2,1791.8,11.16144507]
[1745642359033,0.4923,1792.2,1791.8,5.58068409]
[1745642359529,0.4923,1792.2,1791.9,5.5805994]
[1745642359932,0.4923,1792.2,1791.8,5.58068409]
[1745642360131,0.4923,1792.2,1791.9,5.58050075]
[1745642360732,4.672,1792.1,1791.9,5.58050075]
[1745642361430,4.672,1792.1,1791.8,6.77229648]
[1745642361603,4.672,1792.1,1791.8,5.58094503]
[1745642364135,4.672,1792.1,1791.9,5.5806103]
[1745642366037,4.672,1792.1,1791.8,5.58086083]
[1745642374942,4.672,1792.1,1791.7,6.34919025]
[1745642375147,4.672,1792.1,1791.7,11.9302805]
[1745642375447,6.07266197,1792.0,1791.6,11.16283535]
[1745642376039,6.07266197,1792.0,1791.6,11.16272606]
[1745642376225,0.4923,1792.0,1791.7,5.5812711]
[1745642377845,6.07268246,1792.0,1791.6,5.58139867]
[1745642378047,0.4923,1792.0,1791.6,11.16275666]
[1745642378227,5.58074259,1791.9,1791.5,11.96578844]
[1745642378417,6.07285707,1792.0,1791.5,7.58064047]
[1745642378618,5.58114824,1791.8,1791.4,6.33511283]
[1745642378939,5.1653,1791.7,1791.4,6.33511283]
[1745642379633,4.673,1791.7,1791.5,5.58169689]
[1745642379839,4.673,1791.7,1791.6,5.58160303]
[1745642380439,4.673,1791.7,1791.5,11.16339661]
[1745642380851,4.673,1791.7,1791.6,5.58160303]
[1745642382667,4.673,1791.7,1791.4,6.3350978]
[1745642382849,4.673,1791.7,1791.5,5.58175877]
[1745642383050,4.673,1791.7,1791.6,5.68727095]
[1745642385562,4.673,1791.7,1791.6,0.10566792]
[1745642385742,4.673,1791.7,1791.6,5.68727095]
[1745642386274,4.673,1791.7,1791.6,0.10566792]
[1745642386659,4.673,1791.7,1791.6,5.68727095]
[1745642388067,4.65761397,1791.7,1791.6,5.68727095]
[1745642389896,0.4923,1791.9,1791.8,5.58087155]
[1745642389897,4.673,1791.9,1791.8,5.58087155]
[1745642390077,4.673,1791.9,1791.8,0.10554274]
[1745642390275,4.673,1791.9,1791.8,5.68652276]
[1745642397120,4.673,1791.9,1791.8,5.58098002]
[1745642400291,4.673,1791.9,1791.8,6.69718426]
[1745642400489,4.673,1791.9,1791.8,5.58098002]
[1745642406329,4.672,1792.2,1791.8,0.95910725]
[1745642406625,4.672,1792.2,1792.1,5.58004575]
[1745642407597,4.672,1792.2,1791.9,0.7903]
[1745642407838,5.1643,1792.2,1791.9,5.5806541]
[1745642408040,5.1643,1792.2,1791.9,11.16111939]
[1745642408244,5.1643,1792.2,1791.9,5.58046529]
[1745642410003,5.1643,1792.2,1791.9,11.16092471]
[1745642410333,5.1643,1792.2,1792.0,5.58031507]
[1745642411150,5.1643,1792.2,1791.9,5.58042325]
[1745642412951,4.672,1792.2,1792.0,5.58010976]
[1745642413157,4.672,1792.2,1792.0,6.36920976]
[1745642413955,0.51916121,1792.3,1792.2,5.5797344]
[1745642414161,4.672,1792.2,1792.1,5.57985226]
[1745642423591,4.672,1792.2,1792.1,7.32805951]
[1745642426171,4.672,1792.2,1792.1,10.32805951]
[1745642426571,0.4923,1792.7,1792.4,5.57908648]
[1745642426815,4.67,1792.6,1792.4,5.57908648]
[1745642427613,4.67,1792.6,1792.4,6.77689896]
[1745642428397,4.67,1792.6,1792.4,1.19781248]
[1745642429304,4.67,1792.6,1792.2,11.1591513]
[1745642429611,4.67,1792.6,1792.3,5.57938065]
[1745642429775,4.67,1792.6,1792.3,11.15858988]
[1745642429976,4.67,1792.6,1792.3,5.57920923]
[1745642430186,4.67,1792.6,1792.4,6.39858104]
[1745642430390,4.67,1792.6,1792.5,6.21865865]
[1745642431287,4.67,1792.6,1792.5,5.57880055]
[1745642432322,4.67,1792.6,1792.4,0.8197]
[1745642432819,4.67,1792.6,1792.5,5.57880055]
[1745642433404,4.67,1792.6,1792.4,5.57893248]
[1745642437301,4.67,1792.6,1792.3,5.57939333]
[1745642437506,4.67,1792.6,1792.4,5.57895285]
[1745642437691,21.407,1793.0,1792.5,7.49674084]
[1745642437897,21.407,1793.0,1792.9,5.57755591]
[1745642438698,16.737,1793.0,1792.9,5.57755591]
[1745642438899,21.407,1793.0,1792.9,5.57755591]
[1745642439430,21.407,1793.0,1792.9,6.23122223]
[1745642439728,4.67,1793.0,1792.9,7.04012223]
[1745642439931,0.4923,1793.3,1793.0,5.57702045]
[1745642440233,4.67,1793.1,1793.0,5.57702045]
[1745642444298,4.67,1793.1,1793.0,6.90623299]
[1745642444503,4.67,1793.1,1793.0,8.21997159]
[1745642444933,4.669,1793.4,1793.2,5.57653149]
[1745642445362,4.669,1793.4,1793.3,5.57631182]
[1745642446744,4.668,1793.5,1793.3,0.7599]
[1745642446948,4.668,1793.5,1793.2,6.33631027]
[1745642447147,4.668,1793.5,1793.2,7.52761972]
[1745642447347,4.668,1793.5,1793.3,5.57614367]
[1745642447759,4.668,1793.5,1793.3,11.1522469]
[1745642448061,4.668,1793.5,1793.3,5.57626681]
[1745642448431,4.668,1793.5,1793.2,7.52759435]
[1745642448760,4.62411732,1793.5,1793.3,6.32900295]
[1745642449129,21.402,1793.7,1793.4,1.26271254]
[1745642449426,21.402,1793.7,1793.6,5.57537912]
[1745642451477,0.5423,1793.9,1793.6,0.50281254]
[1745642451773,0.5423,1793.9,1793.7,5.57491888]
[1745642451774,0.05,1793.9,1793.7,5.57491888]
[1745642451933,0.05,1793.9,1793.8,0.55749189]
[1745642452440,0.05,1793.9,1793.8,6.13224938]
[1745642453468,0.05,1793.9,1793.8,7.39496192]
[1745642458936,0.05,1793.9,1793.8,6.13224938]
[1745642461654,0.05,1793.9,1793.8,7.43176192]
[1745642461861,0.05,1793.9,1793.8,12.04249199]
[1745642462157,0.05,1793.9,1793.8,11.27055803]
[1745642462357,0.05,1793.9,1793.8,8.27055803]
[1745642463167,0.05,1793.9,1793.8,7.43176192]
[1745642468248,0.05,1793.9,1793.8,6.63506192]
[1745642469256,0.5423,1793.9,1793.4,0.04404051]
[1745642469457,5.5751658,1793.7,1793.4,0.04404051]
[1745642469669,5.1573,1793.6,1793.4,0.04404051]
[1745642469953,4.665,1793.6,1793.4,5.6197525]
[1745642470266,4.665,1793.6,1793.4,0.04404051]
[1745642470267,5.1573,1793.6,1793.4,0.04404051]
[1745642470678,4.665,1793.6,1793.4,0.04404051]
[1745642470844,4.665,1793.6,1793.4,5.61987307]
[1745642471049,4.665,1793.6,1793.4,5.62001324]
[1745642471262,4.665,1793.6,1793.5,5.57568999]
[1745642471472,4.665,1793.6,1793.5,7.19807285]
[1745642472696,4.665,1793.6,1793.5,6.69526031]
[1745642473985,0.05,1793.9,1793.7,5.57495835]
[1745642474184,0.05,1793.9,1793.8,6.07757003]
[1745642474588,0.05,1793.9,1793.8,5.57475749]
[1745642474787,0.05,1793.9,1793.8,6.68972907]
[1745642476992,0.05,1793.9,1793.8,7.19254161]
[1745642477760,0.05,1793.9,1793.8,7.96234161]
[1745642480192,0.05,1793.9,1793.8,2.38758412]
[1745642480862,0.05,1793.9,1793.8,7.96234161]
[1745642481513,0.05,1793.9,1793.8,2.38758412]
[1745642481861,0.05,1793.9,1793.8,1.11497158]
[1745642482083,0.05,1793.9,1793.6,9.84964802]
[1745642482278,0.05,1793.9,1793.7,5.57483695]
[1745642482493,0.05,1793.9,1793.7,11.14980364]
[1745642482818,0.05,1793.9,1793.7,5.57490182]
[1745642483322,0.05,1793.9,1793.6,9.8497213]
[1745642483520,0.5423,1793.9,1793.7,0.98497213]
[1745642484318,0.05,1793.9,1793.7,0.98497213]
[1745642484516,0.05,1793.9,1793.7,6.55993036]
[1745642484684,0.05,1793.9,1793.7,12.13475639]
[1745642484882,0.05,1793.9,1793.7,6.55979816]
[1745642485085,0.05,1793.9,1793.8,0.65597982]
[1745642487896,6.11674673,1793.9,1793.8,0.65597982]
[1745642488091,6.11674673,1793.9,1793.5,7.10978131]
[1745642488811,6.11674673,1793.9,1793.5,6.69509274]
[1745642489923,0.5423,1793.9,1793.6,5.57534023]
[1745642491733,0.05,1793.9,1793.8,5.57475749]
[1745642491923,0.05,1793.9,1793.8,6.07757003]
[1745642492120,0.05,1793.9,1793.8,7.24281182]
[1745642492809,0.05,1793.9,1793.8,8.05181182]
[1745642497810,5.1713,1795.0,1794.6,5.57205152]
[1745642498008,10.7423373,1795.0,1794.6,6.07486406]
[1745642498210,10.7423373,1795.0,1794.6,5.57205152]
[1745642498211,5.1713,1795.0,1794.6,5.57205152]
[1745642499220,5.1713,1795.0,1794.5,5.57255975]
[1745642499221,6.06412189,1794.8,1794.2,0.50281254]
[1745642499425,0.4923,1794.6,1794.3,5.57293043]
[1745642499647,4.679,1794.5,1794.4,0.55729304]
[1745642500728,4.679,1794.5,1794.2,6.07628905]
[1745642500928,4.679,1794.5,1794.2,0.50281254]
[1745642501113,4.679,1794.5,1794.3,5.57319263]
[1745642503147,4.679,1794.5,1794.3,5.57297531]
[1745642504725,4.679,1794.5,1794.2,6.07620103]
[1745642505165,4.679,1794.5,1794.3,5.57319481]
[1745642505316,4.679,1794.5,1794.4,5.57289344]
[1745642505745,4.679,1794.5,1794.3,5.57303106]
[1745642506253,4.679,1794.5,1794.4,0.5]
[1745642508355,4.679,1794.5,1794.4,6.07289344]
[1745642509453,4.679,1794.5,1794.4,0.5]
[1745642509842,4.679,1794.5,1794.3,5.57299587]
[1745642510551,4.679,1794.5,1794.0,8.99569127]
[1745642510757,6.06530366,1794.4,1794.0,7.02609691]
[1745642510931,6.06530366,1794.4,1794.0,6.60446603]
[1745642511949,6.06539169,1794.4,1794.0,5.57410249]
[1745642512754,0.4923,1794.4,1794.1,11.14716258]
[1745642513316,0.4923,1794.4,1794.1,5.57358003]
[1745642513554,0.4923,1794.7,1794.1,0.50281254]
[1745642513723,4.683,1794.6,1794.3,0.50281254]
[1745642513923,4.683,1794.6,1794.3,6.07583541]
[1745642514357,4.683,1794.6,1794.4,5.57284752]
[1745642516759,0.4923,1794.7,1794.4,1.16486829]
[1745642516938,4.683,1794.6,1794.4,5.57262624]
[1745642519878,4.683,1794.6,1794.5,5.57258289]
[1745642521297,4.683,1794.7,1794.6,6.4045072]
[1745642521619,0.05,1794.9,1794.8,5.57165143]
[1745642521891,0.05,1794.9,1794.8,6.68598652]
[1745642523585,0.05,1794.9,1794.8,1.11433509]
[1745642523792,0.00595949,1794.9,1794.6,5.57205346]
[1745642523972,4.683,1794.8,1794.6,5.57205346]
[1745642524385,4.683,1794.8,1794.7,5.57196188]
[1745642524694,4.683,1794.8,1794.6,5.57205346]
[1745642525094,0.4923,1794.7,1794.4,5.57268447]
[1745642525267,0.4923,1794.7,1794.4,6.81314891]
[1745642525594,0.4923,1794.7,1794.4,12.38581686]
[1745642525796,0.4923,1794.7,1794.5,5.57257986]
[1745642526591,0.4923,1794.7,1794.3,5.57304313]
[1745642527110,0.4923,1794.7,1794.4,5.57273474]
[1745642527267,0.4923,1794.7,1794.4,6.07273474]
[1745642528601,1.56700237,1794.7,1794.4,0.5]
[1745642528896,0.4923,1794.7,1794.3,5.5730386]
[1745642529498,0.4923,1794.7,1794.4,5.57288595]
[1745642531825,0.4923,1794.7,1794.3,5.57307302]
[1745642532118,5.57229165,1794.6,1794.2,5.57332387]
[1745642532284,0.4923,1794.5,1794.2,5.57332387]
[1745642532483,4.683,1794.4,1794.2,6.73830493]
[1745642533919,4.683,1794.4,1794.2,5.57332387]
[1745642534119,4.683,1794.4,1794.1,5.57366185]
[1745642534316,4.683,1794.4,1794.0,5.57403728]
[1745642534517,0.4923,1794.3,1794.1,0.5]
[1745642538826,6.06570262,1794.3,1794.1,0.5]
[1745642538990,6.18008491,1794.2,1794.1,0.5]
[1745642539216,7.19067335,1794.2,1794.1,0.5]
[1745642539421,5.57473148,1793.9,1793.4,5.57585615]
[1745642539635,0.4923,1793.7,1793.4,5.57585615]
[1745642540237,0.4923,1793.7,1793.4,5.57576556]
[1745642540438,0.4923,1793.7,1793.5,5.57567025]
[1745642540855,0.4923,1793.7,1793.4,6.26489955]
[1745642541253,0.4923,1793.7,1793.5,0.5]
[1745642542355,0.4923,1793.7,1793.5,6.07551839]
[1745642548244,5.1753,1793.8,1793.5,6.07551839]
[1745642550484,5.1753,1793.8,1793.5,5.57551839]
[1745642554374,5.1753,1793.8,1793.5,6.20194191]
[1745642556282,5.1753,1793.8,1793.5,5.57548729]
[1745642557202,5.1753,1793.8,1793.6,5.57515316]
[1745642557581,0.4923,1794.0,1793.7,6.07788083]
[1745642557784,4.693,1794.1,1793.9,5.57427617]
[1745642558093,4.693,1794.1,1793.8,5.57459559]
[1745642559695,4.693,1794.1,1793.9,5.57441908]
[1745642559859,4.693,1794.1,1793.9,6.36031908]
[1745642560198,4.693,1794.1,1793.9,0.7859]
[1745642560411,4.693,1794.1,1793.9,6.36012102]
[1745642560564,4.693,1794.1,1793.9,5.57422102]
[1745642560891,4.693,1794.1,1793.8,5.57456671]
[1745642561075,4.693,1794.1,1793.8,6.81838643]
[1745642561393,4.693,1794.1,1793.9,5.57444513]
[1745642563295,4.693,1794.1,1793.8,6.81830592]
[1745642563498,4.693,1794.1,1793.9,5.57441954]
[1745642565270,4.693,1794.1,1794.0,5.574136]
[1745642566573,4.693,1794.1,1794.0,7.49939155]
[1745642570535,4.692,1794.4,1794.3,5.57315665]
[1745642570815,3.50877203,1794.9,1794.3,5.57315665]
[1745642570816,0.00595949,1794.9,1794.8,6.38205143]
[1745642571021,0.00595949,1794.9,1794.8,9.88486397]
[1745642571180,0.00595949,1794.9,1794.8,11.43053503]
[1745642572286,0.00595949,1794.9,1794.8,11.53241665]
[1745642573090,0.00595949,1794.9,1794.8,11.94241564]
[1745642574500,1e-08,1794.9,1794.8,12.44522818]
[1745642574900,1e-08,1794.9,1794.8,14.13454159]
[1745642575105,1e-08,1794.9,1794.8,13.27932881]
[1745642575311,1e-08,1794.9,1794.8,11.94241564]
[1745642581479,1e-08,1794.9,1794.8,12.44522818]
[1745642581781,1e-08,1794.9,1794.8,11.94241564]
[1745642582080,1e-08,1794.9,1794.8,12.44522818]
[1745642583080,1e-08,1794.9,1794.8,14.13454159]
[1745642583970,1e-08,1794.9,1794.8,14.69224159]
[1745642584370,4.716,1795.6,1795.5,5.56947925]
[1745642584679,4.716,1795.6,1795.5,6.62923972]
[1745642584854,4.716,1795.6,1795.5,6.12642718]
[1745642585861,4.716,1795.6,1795.1,0.8193]
[1745642586059,0.4923,1795.5,1795.2,5.57017738]
[1745642586482,0.4923,1795.5,1794.9,0.50281254]
[1745642586687,6.06196876,1795.5,1795.1,5.57067053]
[1745642586979,0.4923,1795.5,1795.1,5.57049989]
[1745642587184,0.4923,1795.5,1795.2,5.57029905]
[1745642589490,6.06180556,1795.5,1795.1,6.12754988]
[1745642590288,0.4923,1795.4,1795.1,6.12754988]
[1745642590587,0.4923,1795.4,1795.1,0.55704999]
[1745642590773,6.06224906,1795.4,1795.0,5.57092041]
[1745642590962,0.4923,1795.4,1795.1,5.57050566]
[1745642592691,0.4923,1795.4,1795.2,5.57029646]
[1745642592890,0.4923,1795.4,1795.1,5.57056158]
[1745642593094,0.4923,1795.4,1795.0,5.57081385]
[1745642593295,6.06210611,1795.4,1795.0,5.57081385]
[1745642593592,0.4923,1795.3,1795.0,5.57081385]
[1745642594001,0.4923,1795.3,1795.0,11.14165698]
[1745642594792,5.2063,1795.3,1795.0,11.14165698]
[1745642594992,5.2063,1795.3,1795.1,5.57069974]
[1745642595171,5.2063,1795.3,1795.1,11.14122797]
[1745642595372,5.2063,1795.3,1795.1,5.57052823]
[1745642595577,5.2063,1795.3,1794.9,0.50281254]
[1745642595901,5.2063,1795.3,1795.2,5.57040998]
[1745642598409,5.2063,1795.3,1795.1,5.57053155]
[1745642599074,5.2063,1795.3,1795.0,5.57073453]
[1745642599603,10.2842604,1795.3,1794.9,6.60504263]
[1745642599794,0.4923,1795.2,1794.9,5.57133302]
[1745642600496,0.4923,1795.2,1795.0,5.57093438]
[1745642600885,0.4923,1795.2,1795.1,5.57072029]
[1745642601095,5.2063,1795.3,1795.1,5.57072029]
[1745642601603,0.51932506,1795.4,1795.1,5.5705126]
[1745642601824,4.714,1795.3,1795.2,5.57029446]
[1745642604500,4.714,1795.3,1795.2,6.81590642]
[1745642606626,4.714,1795.6,1795.5,5.56937807]
[1745642607720,0.5423,1795.9,1795.3,1.28661254]
[1745642607931,5.2563,1795.9,1795.6,5.56904406]
[1745642608382,10.82459831,1795.9,1795.5,5.5694719]
[1745642609824,5.2563,1795.9,1795.5,5.56924066]
[1745642610031,5.2563,1795.9,1795.5,6.12616473]
[1745642610690,5.2563,1795.9,1795.6,5.56903301]
[1745642611090,5.2563,1795.9,1795.6,5.56902999]
[1745642611317,4.764,1795.9,1795.7,5.56873079]
[1745642613298,4.764,1795.9,1795.7,5.56864666]
[1745642613821,4.764,1795.9,1795.6,0.7838]
[1745642613986,4.764,1795.9,1795.6,6.35293]
[1745642614186,4.764,1795.9,1795.6,6.35294711]
[1745642615832,4.764,1795.9,1795.6,11.92190293]
[1745642615987,4.764,1795.9,1795.6,13.16978563]
[1745642616523,4.764,1795.9,1795.7,5.56877849]
[1745642616832,4.764,1795.9,1795.7,5.5687021]
[1745642617994,4.764,1795.9,1795.6,2.0316827]
[1745642618211,10.33243015,1795.9,1795.6,0.7838]
[1745642620042,5.56894196,1795.7,1795.4,0.8265]
[1745642620231,5.56960964,1795.5,1795.2,0.8265]
[1745642620542,10.28260964,1795.5,1795.1,6.39705532]
[1745642620716,10.28260964,1795.5,1795.1,0.8265]
[1745642621036,0.4923,1795.4,1795.0,3.0]
[1745642621248,5.57024786,1795.3,1795.1,0.3]
[1745642621944,10.28250282,1795.5,1795.1,5.87051695]
[1745642622120,6.06228585,1795.4,1795.1,0.3]
[1745642622320,6.06228585,1795.4,1794.9,6.90045535]
[1745642622526,6.06228585,1795.4,1794.9,6.90042528]
[1745642622912,5.56998585,1795.4,1795.0,5.57095302]
[1745642623117,10.28266107,1795.5,1795.0,5.57080601]
[1745642623355,10.28269502,1795.5,1795.0,5.57080328]
[1745642623665,5.56980721,1795.4,1795.1,0.55708033]
[1745642624243,4.713,1795.5,1795.1,1.05989287]
[1745642624544,10.28250852,1795.5,1795.1,6.07341568]
[1745642626726,15.8522438,1795.5,1795.1,0.50281254]
[1745642626928,5.56979234,1795.4,1795.0,5.57083186]
[1745642627453,6.06243952,1795.3,1794.9,0.8265]
[1745642627621,6.06254534,1795.3,1794.9,6.39772646]
[1745642627822,6.06254534,1795.3,1795.0,0.63977265]
[1745642628135,6.06261768,1795.3,1794.9,0.8265]
[1745642628644,5.57051904,1795.2,1794.9,0.8265]
[1745642629153,6.06257821,1795.3,1794.9,0.8265]
[1745642629660,6.06257821,1795.3,1794.9,6.39782452]
[1745642630060,0.4923,1795.3,1794.9,0.8265]
[1745642630260,0.4923,1795.3,1794.9,1.51732787]
[1745642630422,6.06257405,1795.3,1794.9,1.51732787]
[1745642631053,6.06257405,1795.3,1794.9,7.08866636]
[1745642632458,11.63292646,1795.3,1794.9,7.08866636]
[1745642632643,6.06257405,1795.3,1794.9,7.08866636]
[1745642633161,11.63292691,1795.3,1794.9,7.08866636]
[1745642633546,6.06257405,1795.3,1794.9,7.08866636]
[1745642633864,11.63294464,1795.3,1794.9,7.08866636]
[1745642634066,6.06257405,1795.3,1794.9,1.51732787]
[1745642634371,0.4923,1795.3,1794.9,7.08844915]
[1745642634554,0.4923,1795.3,1795.0,6.27976505]
[1745642634739,0.4923,1795.3,1795.0,0.70884492]
[1745642635350,6.0625361,1795.3,1795.0,0.70884492]
[1745642636905,5.56981101,1795.4,1795.0,6.27966369]
[1745642638174,5.56981101,1795.4,1795.0,0.70884492]
[1745642638474,6.06240855,1795.3,1795.0,0.70884492]
[1745642639172,10.74840855,1795.3,1795.0,0.70884492]
[1745642639582,5.1783,1795.3,1795.0,0.70884492]
[1745642640072,5.1783,1795.3,1795.0,6.27973929]
[1745642640270,5.1783,1795.3,1795.1,0.62797393]
[1745642640648,4.686,1795.3,1795.0,6.27981741]
[1745642640855,4.686,1795.3,1795.0,11.85069586]
[1745642641075,4.686,1795.3,1795.0,6.27972337]
[1745642641247,4.686,1795.3,1795.2,0.8252]
[1745642641447,4.686,1795.3,1795.2,6.39560998]
[1745642641647,4.686,1795.3,1795.2,7.5922306]
[1745642641843,4.686,1795.3,1795.0,1.53404492]
[1745642642065,10.25611651,1795.3,1795.0,1.53404492]
[1745642642781,4.686,1795.3,1795.0,7.10507006]
[1745642643078,10.25612701,1795.3,1795.0,0.70884492]
[1745642643282,10.25612701,1795.3,1794.9,6.07415065]
[1745642643450,4.686,1795.3,1795.0,5.57096952]
[1745642645281,10.25617388,1795.3,1794.9,6.07396949]
[1745642645462,4.686,1795.3,1795.0,0.8252]
[1745642646886,10.25620705,1795.3,1795.0,0.8252]
[1745642647085,10.25620705,1795.3,1794.9,6.88986949]
[1745642647252,10.25620705,1795.3,1795.0,0.68898695]
[1745642648196,4.686,1795.3,1795.0,6.25997018]
[1745642651870,4.686,1795.3,1795.0,0.68898695]
[1745642652070,10.25612504,1795.3,1795.0,0.68898695]
[1745642652556,10.25612504,1795.3,1794.8,6.08526757]
[1745642652893,10.25612504,1795.3,1794.9,5.57132675]
[1745642653990,10.25612504,1795.3,1794.9,5.57112513]
[1745642653991,4.686,1795.3,1794.9,5.57112513]
[1745642654199,4.686,1795.3,1795.0,5.57102178]
[1745642654996,4.686,1795.3,1794.9,5.57115169]
[1745642655162,4.686,1795.3,1795.0,0.55711517]
[1745642655763,4.686,1795.3,1795.0,6.1278537]
[1745642658399,4.686,1795.2,1795.0,6.1278537]
[1745642658898,4.686,1795.2,1795.0,0.55711517]
[1745642659075,4.686,1795.2,1795.0,6.12811114]
[1745642660100,4.686,1795.2,1795.0,6.12812248]
[1745642660297,4.686,1795.2,1795.0,0.55711517]
[1745642660601,4.686,1795.2,1794.9,6.37894524]
[1745642662778,4.686,1795.2,1794.9,6.3790126]
[1745642664506,4.686,1795.2,1794.9,6.37892191]
[1745642664802,4.686,1795.2,1794.9,11.95001659]
[1745642665303,4.686,1795.2,1794.9,6.37889468]
[1745642665599,4.686,1795.2,1795.0,0.63788947]
[1745642666103,4.686,1795.2,1795.0,5.570844]
[1745642671711,4.686,1795.2,1795.0,6.52629456]
[1745642672307,4.686,1795.2,1794.9,6.37896669]
[1745642673000,4.686,1795.2,1794.9,11.9501013]
[1745642673205,4.686,1795.2,1795.0,5.57102509]
[1745642678280,4.686,1795.2,1794.9,5.57113461]
[1745642679191,4.686,1795.2,1794.9,12.4034569]
[1745642679403,4.686,1795.2,1795.0,5.57102264]
[1745642680615,4.686,1795.2,1794.9,6.83237452]
[1745642682815,4.686,1795.2,1794.9,12.40347951]
[1745642683217,4.686,1795.2,1794.9,6.83230075]
[1745642683823,4.686,1795.2,1794.9,12.40341837]
[1745642684306,4.686,1795.2,1795.0,0.7934]
[1745642684610,4.686,1795.2,1795.0,6.36441291]
[1745642686316,4.686,1795.2,1795.0,6.36419191]
[1745642686522,4.686,1795.2,1795.0,7.68384922]
[1745642691019,4.686,1795.2,1795.0,2.11305731]
[1745642691222,4.686,1795.2,1795.0,6.3644193]
[1745642694531,4.686,1795.2,1795.0,11.93520718]
[1745642694718,4.686,1795.2,1795.0,6.36418354]
[1745642696331,6.06164182,1795.6,1795.2,5.57028045]
[1745642696499,4.664,1795.5,1795.2,6.36738045]
[1745642697032,4.664,1795.5,1795.2,6.36729372]
[1745642697428,4.664,1795.5,1795.2,7.32273596]
[1745642697631,4.664,1795.5,1795.3,5.56999244]
[1745642698202,4.664,1795.5,1795.3,5.56992279]
[1745642698404,4.664,1795.5,1795.3,6.85919602]
[1745642699404,4.664,1795.5,1795.4,5.56978946]
[1745642700527,4.664,1795.5,1795.4,6.36688946]
[1745642701116,4.664,1795.5,1795.4,10.32234002]
[1745642701436,4.664,1795.5,1795.4,9.36688946]
[1745642701636,4.664,1795.5,1795.4,11.08504306]